[Event "*** Titled Tuesday Blitz"]
[Site "Chess.com"]
[Date "2018.01.02"]
[Round "6"]
[White "Zufi1811"]
[Black "JammyDodger91"]
[Result "1-0"]
[WhiteElo "2409"]
[BlackElo "2374"]
[TimeControl "180+2"]
[EndTime "14:17:14 PST"]
[Termination "Zufi1811 won by resignation"]

1. e4 {[%clk 0:03:01.9]} 1... e5 {[%clk 0:03:00.6]} 2. Nf3 {[%clk 0:03:02.5]}
2... Nc6 {[%clk 0:03:01.7]} 3. Bb5 {[%clk 0:03:03.9]} 3... a6 {[%clk 0:03:02.3]}
4. Ba4 {[%clk 0:03:05.3]} 4... Nf6 {[%clk 0:03:03.2]} 5. O-O {[%clk 0:03:06.8]}
5... Be7 {[%clk 0:03:04.5]} 6. Re1 {[%clk 0:03:08.3]} 6... b5 {[%clk 0:03:05.8]}
7. Bb3 {[%clk 0:03:09.9]} 7... d6 {[%clk 0:03:07.5]} 8. c3 {[%clk 0:03:11.3]}
8... O-O {[%clk 0:03:08.7]} 9. h3 {[%clk 0:03:12.9]} 9... Nb8 {[%clk 0:03:10.2]}
10. d4 {[%clk 0:03:14.3]} 10... Nbd7 {[%clk 0:03:11.8]} 11. c4 {[%clk
0:03:15.8]} 11... Bb7 {[%clk 0:02:50.9]} 12. Nc3 {[%clk 0:03:15.3]} 12... c6
{[%clk 0:02:21.1]} 13. a3 {[%clk 0:03:15.1]} 13... Qc7 {[%clk 0:02:18.2]} 14.
Bg5 {[%clk 0:03:14.4]} 14... Rfe8 {[%clk 0:02:17.5]} 15. Qc2 {[%clk 0:03:12.5]}
15... Bf8 {[%clk 0:02:04.5]} 16. Rad1 {[%clk 0:03:09.6]} 16... Rac8 {[%clk
0:01:55.6]} 17. Bh4 {[%clk 0:02:33.4]} 17... Qb6 {[%clk 0:01:38.9]} 18. Bg3
{[%clk 0:02:06]} 18... exd4 {[%clk 0:01:26.9]} 19. Nxd4 {[%clk 0:02:07.9]} 19...
Nc5 {[%clk 0:01:28.4]} 20. Ba2 {[%clk 0:02:07.6]} 20... b4 {[%clk 0:01:13.5]}
21. axb4 {[%clk 0:02:02.6]} 21... Qxb4 {[%clk 0:01:15.4]} 22. Nf5 {[%clk
0:02:03.6]} 22... Rcd8 {[%clk 0:01:03.7]} 23. Bxd6 {[%clk 0:01:52.7]} 23... Bxd6
{[%clk 0:01:00.5]} 24. Rxd6 {[%clk 0:01:54.6]} 24... Bc8 {[%clk 0:00:48.4]} 25.
Rxd8 {[%clk 0:01:53.3]} 25... Rxd8 {[%clk 0:00:49.2]} 26. Ne7+ {[%clk
0:01:54.8]} 1-0

[Event "*** Titled Tuesday Blitz"]
[Site "Chess.com"]
[Date "2018.01.02"]
[Round "6"]
[White "DrVelja"]
[Black "DanielNaroditsky"]
[Result "0-1"]
[WhiteElo "2558"]
[BlackElo "2807"]
[TimeControl "180+2"]
[EndTime "14:17:38 PST"]
[Termination "DanielNaroditsky won by resignation"]

1. e4 {[%clk 0:03:01.9]} 1... e5 {[%clk 0:03:00]} 2. Nf3 {[%clk 0:03:03]} 2...
Nc6 {[%clk 0:03:01.7]} 3. Bb5 {[%clk 0:03:04.4]} 3... a6 {[%clk 0:03:02.3]} 4.
Ba4 {[%clk 0:03:05.7]} 4... Nf6 {[%clk 0:03:03.5]} 5. O-O {[%clk 0:03:07]} 5...
Be7 {[%clk 0:03:05.2]} 6. d3 {[%clk 0:03:08.5]} 6... b5 {[%clk 0:03:06.7]} 7.
Bb3 {[%clk 0:03:10.1]} 7... d6 {[%clk 0:03:08.6]} 8. a3 {[%clk 0:03:11.7]} 8...
O-O {[%clk 0:03:09.8]} 9. Nc3 {[%clk 0:03:12.9]} 9... Be6 {[%clk 0:03:11.1]} 10.
Nd5 {[%clk 0:03:11.3]} 10... Na5 {[%clk 0:03:12.4]} 11. Ba2 {[%clk 0:03:10]}
11... c6 {[%clk 0:03:13.8]} 12. Nxf6+ {[%clk 0:03:07]} 12... Bxf6 {[%clk
0:03:14.8]} 13. Bxe6 {[%clk 0:03:08.7]} 13... fxe6 {[%clk 0:03:16.7]} 14. b4
{[%clk 0:03:10.1]} 14... Nb7 {[%clk 0:03:18.1]} 15. c3 {[%clk 0:03:09.4]} 15...
Qe8 {[%clk 0:03:19.4]} 16. Be3 {[%clk 0:03:08.4]} 16... Qg6 {[%clk 0:03:20.5]}
17. a4 {[%clk 0:03:08.3]} 17... d5 {[%clk 0:03:22]} 18. Qc2 {[%clk 0:02:38.8]}
18... Rf7 {[%clk 0:03:20.6]} 19. axb5 {[%clk 0:02:32.1]} 19... cxb5 {[%clk
0:03:22.5]} 20. Rfe1 {[%clk 0:02:22.4]} 20... Nd6 {[%clk 0:03:23.3]} 21. Bc5
{[%clk 0:02:19.3]} 21... Nb7 {[%clk 0:03:25.1]} 22. exd5 {[%clk 0:02:15.6]}
22... Qf5 {[%clk 0:03:16]} 23. dxe6 {[%clk 0:02:13]} 23... Qxe6 {[%clk
0:03:17.9]} 24. d4 {[%clk 0:02:13.2]} 24... Qc4 {[%clk 0:03:09.8]} 25. dxe5
{[%clk 0:01:55.7]} 25... Nxc5 {[%clk 0:03:10.2]} 26. exf6 {[%clk 0:01:53.4]}
26... Nd3 {[%clk 0:03:11.6]} 27. Re3 {[%clk 0:01:48.4]} 27... Nxb4 {[%clk
0:03:12.5]} 28. Qe4 {[%clk 0:01:09.5]} 28... Qxe4 {[%clk 0:03:13.1]} 29. Rxe4
{[%clk 0:01:11.4]} 29... Nd5 {[%clk 0:03:13.9]} 30. fxg7 {[%clk 0:00:56.9]}
30... Nxc3 {[%clk 0:03:14.6]} 31. Re6 {[%clk 0:00:58.6]} 31... b4 {[%clk
0:03:14.7]} 32. Rexa6 {[%clk 0:00:49.7]} 32... Rxa6 {[%clk 0:03:16.6]} 33. Rxa6
{[%clk 0:00:51.1]} 33... Rb7 {[%clk 0:03:18.3]} 34. Rc6 {[%clk 0:00:35.6]} 34...
b3 {[%clk 0:03:16.5]} 35. Nd2 {[%clk 0:00:29.5]} 35... b2 {[%clk 0:03:16.6]} 36.
g3 {[%clk 0:00:27.5]} 36... Rd7 {[%clk 0:03:12.6]} 37. Rc8+ {[%clk 0:00:02.8]}
37... Kxg7 {[%clk 0:03:13.3]} 38. Rxc3 {[%clk 0:00:03.3]} 38... Rxd2 {[%clk
0:03:14.4]} 39. Rc7+ {[%clk 0:00:04.4]} 39... Kf8 {[%clk 0:03:16.1]} 40. Rc8+
{[%clk 0:00:04.8]} 40... Ke7 {[%clk 0:03:17.2]} 41. Rb8 {[%clk 0:00:04.5]} 41...
Rd1+ {[%clk 0:03:18.2]} 0-1

[Event "*** Titled Tuesday Blitz"]
[Site "Chess.com"]
[Date "2018.01.02"]
[Round "6"]
[White "Kimster98"]
[Black "chessdjw"]
[Result "0-1"]
[WhiteElo "2478"]
[BlackElo "2517"]
[TimeControl "180+2"]
[EndTime "14:17:44 PST"]
[Termination "chessdjw won by resignation"]

1. d4 {[%clk 0:03:01.9]} 1... Nf6 {[%clk 0:02:59.9]} 2. c4 {[%clk 0:03:02.9]}
2... g6 {[%clk 0:03:00.9]} 3. Nf3 {[%clk 0:03:00.1]} 3... Bg7 {[%clk 0:02:58.7]}
4. g3 {[%clk 0:02:58.9]} 4... O-O {[%clk 0:02:57.3]} 5. Bg2 {[%clk 0:02:56.5]}
5... d5 {[%clk 0:02:58.9]} 6. cxd5 {[%clk 0:02:56.8]} 6... Nxd5 {[%clk
0:03:00.8]} 7. O-O {[%clk 0:02:58.6]} 7... Nb6 {[%clk 0:03:02.1]} 8. Nc3 {[%clk
0:02:59.8]} 8... Nc6 {[%clk 0:03:03.4]} 9. e3 {[%clk 0:03:01.4]} 9... Re8 {[%clk
0:03:04.2]} 10. Nh4 {[%clk 0:03:02.8]} 10... e5 {[%clk 0:03:04.9]} 11. d5 {[%clk
0:03:03]} 11... Nb4 {[%clk 0:03:06.3]} 12. e4 {[%clk 0:02:52.3]} 12... Nc4
{[%clk 0:03:01.8]} 13. a3 {[%clk 0:02:36.1]} 13... Na6 {[%clk 0:03:02.4]} 14.
Qe2 {[%clk 0:02:21.2]} 14... Nd6 {[%clk 0:03:00.7]} 15. Nf3 {[%clk 0:02:22.7]}
15... Nc5 {[%clk 0:02:58.2]} 16. b4 {[%clk 0:02:14.1]} 16... Nb3 {[%clk
0:02:58.9]} 17. Rb1 {[%clk 0:02:15.7]} 17... Nxc1 {[%clk 0:02:57.9]} 18. Rfxc1
{[%clk 0:02:17.6]} 18... Bd7 {[%clk 0:02:57.9]} 19. Nd2 {[%clk 0:02:11.3]} 19...
a5 {[%clk 0:02:57.7]} 20. Nc4 {[%clk 0:02:08.2]} 20... axb4 {[%clk 0:02:57.6]}
21. Nxd6 {[%clk 0:02:03.9]} 21... cxd6 {[%clk 0:02:57.1]} 22. axb4 {[%clk
0:01:58.7]} 22... Bh6 {[%clk 0:02:55.8]} 23. Rc2 {[%clk 0:01:59.3]} 23... Qb6
{[%clk 0:02:52.6]} 24. Ra2 {[%clk 0:01:49.7]} 24... Rxa2 {[%clk 0:02:45.9]} 25.
Qxa2 {[%clk 0:01:51.6]} 25... Rc8 {[%clk 0:02:47.1]} 26. Qb3 {[%clk 0:01:45.4]}
26... Be3 {[%clk 0:02:42.4]} 27. Nd1 {[%clk 0:01:41.6]} 27... Bd4 {[%clk
0:02:42.5]} 28. Qa3 {[%clk 0:01:18.2]} 28... Rc2 {[%clk 0:02:38.3]} 29. Ne3
{[%clk 0:00:55.4]} 29... Rc3 {[%clk 0:02:23.6]} 30. Qa8+ {[%clk 0:00:52.1]}
30... Kg7 {[%clk 0:02:24.4]} 31. Nd1 {[%clk 0:00:27.1]} 31... Rc2 {[%clk
0:02:24.3]} 32. Qb8 {[%clk 0:00:23]} 32... Rc8 {[%clk 0:02:19.6]} 0-1

[Event "*** Titled Tuesday Blitz"]
[Site "Chess.com"]
[Date "2018.01.02"]
[Round "6"]
[White "Superfelix"]
[Black "sergeikim"]
[Result "1-0"]
[WhiteElo "2331"]
[BlackElo "2353"]
[TimeControl "180+2"]
[EndTime "14:18:08 PST"]
[Termination "Superfelix won by resignation"]

1. e4 {[%clk 0:03:01.9]} 1... e5 {[%clk 0:03:00.5]} 2. Nf3 {[%clk 0:02:59.6]}
2... Nc6 {[%clk 0:03:01.3]} 3. d4 {[%clk 0:02:49.1]} 3... exd4 {[%clk
0:02:56.4]} 4. Nxd4 {[%clk 0:02:51]} 4... Bc5 {[%clk 0:02:57.1]} 5. Nf5 {[%clk
0:02:46.5]} 5... Qf6 {[%clk 0:02:51.7]} 6. Nc3 {[%clk 0:02:45.1]} 6... Nge7
{[%clk 0:02:46.5]} 7. Ne3 {[%clk 0:02:44.6]} 7... d6 {[%clk 0:02:35.7]} 8. Be2
{[%clk 0:02:45.7]} 8... Nd4 {[%clk 0:02:14.3]} 9. Bd3 {[%clk 0:02:34.4]} 9... c6
{[%clk 0:02:11.6]} 10. O-O {[%clk 0:02:34.2]} 10... a6 {[%clk 0:01:59.5]} 11.
Kh1 {[%clk 0:02:34.9]} 11... O-O {[%clk 0:01:31.7]} 12. f4 {[%clk 0:02:35.4]}
12... b5 {[%clk 0:01:26.2]} 13. g3 {[%clk 0:02:32.1]} 13... Bh3 {[%clk
0:01:22.3]} 14. Rf2 {[%clk 0:02:30.3]} 14... Ng6 {[%clk 0:01:15.4]} 15. f5
{[%clk 0:02:28.4]} 15... Ne5 {[%clk 0:01:12.8]} 16. Qh5 {[%clk 0:02:29.1]} 16...
Ng4 {[%clk 0:00:33.3]} 17. Nxg4 {[%clk 0:02:24.5]} 17... Bxg4 {[%clk 0:00:34.1]}
18. Qxg4 {[%clk 0:02:25.3]} 18... b4 {[%clk 0:00:31.3]} 19. Bg5 {[%clk
0:02:17.1]} 19... Qe5 {[%clk 0:00:31]} 20. Na4 {[%clk 0:02:07.3]} 20... Ba7
{[%clk 0:00:30.3]} 21. f6 {[%clk 0:02:02]} 21... g6 {[%clk 0:00:29.2]} 22. Rff1
{[%clk 0:01:53.1]} 22... Rfe8 {[%clk 0:00:18]} 23. Qh4 {[%clk 0:01:53.6]} 23...
Kh8 {[%clk 0:00:16.5]} 24. Qh6 {[%clk 0:01:51.5]} 24... Rg8 {[%clk 0:00:14.7]}
25. Rf4 {[%clk 0:01:53]} 25... Ne6 {[%clk 0:00:07.5]} 26. Qxh7+ {[%clk
0:01:48.7]} 1-0

[Event "*** Titled Tuesday Blitz"]
[Site "Chess.com"]
[Date "2018.01.02"]
[Round "6"]
[White "AnonymousBread"]
[Black "Pirlo1"]
[Result "1-0"]
[WhiteElo "2417"]
[BlackElo "2211"]
[TimeControl "180+2"]
[EndTime "14:18:21 PST"]
[Termination "AnonymousBread won on time"]

1. d4 {[%clk 0:03:01.9]} 1... Nf6 {[%clk 0:02:00.9]} 2. Bf4 {[%clk 0:02:59.7]}
2... c5 {[%clk 0:01:59.5]} 3. dxc5 {[%clk 0:02:58.8]} 3... e6 {[%clk 0:01:57.8]}
4. Nc3 {[%clk 0:02:58.7]} 4... Bxc5 {[%clk 0:01:58.1]} 5. e3 {[%clk 0:03:00.2]}
5... d5 {[%clk 0:01:58.5]} 6. Nf3 {[%clk 0:03:01.8]} 6... O-O {[%clk 0:01:59.1]}
7. Bd3 {[%clk 0:03:03.3]} 7... Nc6 {[%clk 0:02:00.3]} 8. O-O {[%clk 0:03:04.8]}
8... Qe7 {[%clk 0:01:58.9]} 9. e4 {[%clk 0:03:06.2]} 9... e5 {[%clk 0:01:58.7]}
10. Bg5 {[%clk 0:02:58.7]} 10... dxe4 {[%clk 0:01:43.6]} 11. Nxe4 {[%clk
0:02:59.4]} 11... Bg4 {[%clk 0:01:38.3]} 12. Re1 {[%clk 0:02:49.5]} 12... Rad8
{[%clk 0:01:36.1]} 13. Qc1 {[%clk 0:02:38]} 13... Bxf3 {[%clk 0:01:30.6]} 14.
gxf3 {[%clk 0:02:39.9]} 14... Kh8 {[%clk 0:01:25.4]} 15. Bxf6 {[%clk 0:02:35.4]}
15... gxf6 {[%clk 0:01:26]} 16. Qh6 {[%clk 0:02:37.3]} 16... Rg8+ {[%clk
0:01:26]} 17. Kh1 {[%clk 0:02:38.2]} 17... Rg6 {[%clk 0:01:26.1]} 18. Qh4 {[%clk
0:02:39.3]} 18... Bd4 {[%clk 0:01:22.4]} 19. Ng3 {[%clk 0:02:35.8]} 19... Bxf2
{[%clk 0:01:16]} 20. Bxg6 {[%clk 0:02:32.2]} 20... fxg6 {[%clk 0:01:16.4]} 21.
Red1 {[%clk 0:02:32.8]} 21... Nd4 {[%clk 0:00:51.3]} 22. Qe4 {[%clk 0:02:13.6]}
22... f5 {[%clk 0:00:24.9]} 23. Qd3 {[%clk 0:02:14.3]} 23... Bxg3 {[%clk
0:00:22.2]} 24. hxg3 {[%clk 0:02:14.6]} 24... e4 {[%clk 0:00:19.2]} 25. Qc3
{[%clk 0:02:08.8]} 25... Qg7 {[%clk 0:00:18.7]} 26. fxe4 {[%clk 0:02:05.2]}
26... fxe4 {[%clk 0:00:18.8]} 27. Kg2 {[%clk 0:02:06.6]} 27... Qf6 {[%clk
0:00:11.8]} 28. Rf1 {[%clk 0:02:06.2]} 28... Qe5 {[%clk 0:00:12.5]} 29. Rae1
{[%clk 0:02:06.7]} 29... Rd7 {[%clk 0:00:11.8]} 30. Rf4 {[%clk 0:02:05.4]} 30...
Qd5 {[%clk 0:00:02.4]} 31. Rexe4 {[%clk 0:02:03.6]} 31... Kg7 {[%clk 0:00:02.4]}
32. Qxd4+ {[%clk 0:02:04.7]} 1-0

[Event "*** Titled Tuesday Blitz"]
[Site "Chess.com"]
[Date "2018.01.02"]
[Round "6"]
[White "Korchmar_Vasiliy"]
[Black "GM_Huschenbeth"]
[Result "1-0"]
[WhiteElo "2524"]
[BlackElo "2433"]
[TimeControl "180+2"]
[EndTime "14:18:25 PST"]
[Termination "Korchmar_Vasiliy won by checkmate"]

1. d4 {[%clk 0:03:01.2]} 1... d5 {[%clk 0:02:59.3]} 2. Bf4 {[%clk 0:03:01.3]}
2... c5 {[%clk 0:02:59.7]} 3. e3 {[%clk 0:03:01.8]} 3... Nc6 {[%clk 0:03:01.2]}
4. Nf3 {[%clk 0:03:02.4]} 4... Qb6 {[%clk 0:02:54.3]} 5. Nc3 {[%clk 0:03:01.7]}
5... cxd4 {[%clk 0:02:32.9]} 6. Nb5 {[%clk 0:02:58.3]} 6... Qa5+ {[%clk
0:02:19.8]} 7. c3 {[%clk 0:02:59.6]} 7... dxc3 {[%clk 0:02:14]} 8. Nc7+ {[%clk
0:02:55.2]} 8... Kd8 {[%clk 0:02:10]} 9. b4 {[%clk 0:02:56.4]} 9... Qxb4 {[%clk
0:01:57.6]} 10. Qxd5+ {[%clk 0:02:45.7]} 10... Bd7 {[%clk 0:01:57.9]} 11. Nxa8
{[%clk 0:02:45.3]} 11... Qb2 {[%clk 0:01:49.6]} 12. Rd1 {[%clk 0:02:43.2]} 12...
Nf6 {[%clk 0:01:38.7]} 13. Qb5 {[%clk 0:02:44.4]} 13... Nb4 {[%clk 0:01:33.2]}
14. Be2 {[%clk 0:02:35.7]} 14... c2 {[%clk 0:01:02.1]} 15. O-O {[%clk
0:02:36.5]} 15... cxd1=Q {[%clk 0:01:02.9]} 16. Rxd1 {[%clk 0:02:31.2]} 16...
Nd3 {[%clk 0:00:17.7]} 17. Qa5+ {[%clk 0:02:16.9]} 17... b6 {[%clk 0:00:14]} 18.
Qxa7 {[%clk 0:02:18]} 18... e5 {[%clk 0:00:12.2]} 19. Bxd3 {[%clk 0:01:55]}
19... exf4 {[%clk 0:00:12.6]} 20. Bf5 {[%clk 0:01:56.1]} 20... Bd6 {[%clk
0:00:12.7]} 21. Nxb6 {[%clk 0:01:37.1]} 21... Bxf5 {[%clk 0:00:03.7]} 22. Rxd6+
{[%clk 0:01:38.1]} 22... Ke8 {[%clk 0:00:05.3]} 23. Qb8+ {[%clk 0:01:35]} 23...
Ke7 {[%clk 0:00:06.4]} 24. Qc7+ {[%clk 0:01:36.2]} 24... Bd7 {[%clk 0:00:04]}
25. Rxd7+ {[%clk 0:01:34.3]} 25... Nxd7 {[%clk 0:00:04.8]} 26. Qxd7+ {[%clk
0:01:36.2]} 26... Kf6 {[%clk 0:00:05.5]} 27. Nd5+ {[%clk 0:01:37.4]} 27... Kg6
{[%clk 0:00:05.8]} 28. Qg4+ {[%clk 0:01:37]} 28... Kh6 {[%clk 0:00:05.4]} 29.
Qg5# {[%clk 0:01:38.9]} 1-0

[Event "*** Titled Tuesday Blitz"]
[Site "Chess.com"]
[Date "2018.01.02"]
[Round "6"]
[White "eldur16"]
[Black "1e41-0"]
[Result "1-0"]
[WhiteElo "2511"]
[BlackElo "2368"]
[TimeControl "180+2"]
[EndTime "14:18:41 PST"]
[Termination "eldur16 won by resignation"]

1. c4 {[%clk 0:03:00.8]} 1... e5 {[%clk 0:02:58.5]} 2. g3 {[%clk 0:02:58.9]}
2... c6 {[%clk 0:02:58.7]} 3. d4 {[%clk 0:02:57.6]} 3... e4 {[%clk 0:02:57.7]}
4. Nc3 {[%clk 0:02:57.7]} 4... d5 {[%clk 0:02:58.3]} 5. cxd5 {[%clk 0:02:57.3]}
5... cxd5 {[%clk 0:02:59.3]} 6. Nh3 {[%clk 0:02:57.2]} 6... Nc6 {[%clk
0:02:52.6]} 7. Bg2 {[%clk 0:02:53]} 7... h6 {[%clk 0:02:48.6]} 8. Nf4 {[%clk
0:02:52.1]} 8... Nf6 {[%clk 0:02:48.9]} 9. h4 {[%clk 0:02:51.1]} 9... Be7 {[%clk
0:02:42.7]} 10. e3 {[%clk 0:02:50.6]} 10... O-O {[%clk 0:02:13.8]} 11. f3 {[%clk
0:02:37.5]} 11... Re8 {[%clk 0:02:02]} 12. fxe4 {[%clk 0:02:36.4]} 12... Bg4
{[%clk 0:02:02.2]} 13. Qb3 {[%clk 0:02:31.4]} 13... Nxe4 {[%clk 0:01:54.5]} 14.
Nxe4 {[%clk 0:02:27.5]} 14... Bb4+ {[%clk 0:01:48.4]} 15. Kf2 {[%clk 0:02:17.6]}
15... dxe4 {[%clk 0:01:46.8]} 16. d5 {[%clk 0:02:17.6]} 16... g5 {[%clk
0:01:32]} 17. hxg5 {[%clk 0:02:15.8]} 17... hxg5 {[%clk 0:01:31.6]} 18. dxc6
{[%clk 0:02:15.5]} 18... gxf4 {[%clk 0:01:29.9]} 19. Qxb4 {[%clk 0:01:50.7]}
19... fxg3+ {[%clk 0:01:10.6]} 20. Kxg3 {[%clk 0:01:50.9]} 20... Qg5 {[%clk
0:01:00]} 21. Kf2 {[%clk 0:01:39.3]} 21... Qf6+ {[%clk 0:00:58.5]} 22. Kg1
{[%clk 0:01:36.9]} 22... Rad8 {[%clk 0:00:51.2]} 23. Bd2 {[%clk 0:01:35.1]}
23... Bf3 {[%clk 0:00:41.4]} 24. Bc3 {[%clk 0:01:31.8]} 24... Re5 {[%clk
0:00:30.8]} 25. Bxe5 {[%clk 0:01:30.1]} 25... Qxe5 {[%clk 0:00:32.7]} 26. Qc3
{[%clk 0:01:20.6]} 26... Qxc3 {[%clk 0:00:23.2]} 27. bxc3 {[%clk 0:01:20.9]}
27... Bxg2 {[%clk 0:00:25.1]} 28. Kxg2 {[%clk 0:01:20]} 28... bxc6 {[%clk
0:00:27]} 29. Kg3 {[%clk 0:01:18.6]} 29... Rd3 {[%clk 0:00:26.6]} 30. Kf4 {[%clk
0:01:18.9]} 30... Rxc3 {[%clk 0:00:27.7]} 31. Rhc1 {[%clk 0:01:15.2]} 1-0

[Event "*** Titled Tuesday Blitz"]
[Site "Chess.com"]
[Date "2018.01.02"]
[Round "6"]
[White "LawrenceTrent"]
[Black "Saitama_Hero"]
[Result "1-0"]
[WhiteElo "2397"]
[BlackElo "2199"]
[TimeControl "180+2"]
[EndTime "14:18:42 PST"]
[Termination "LawrenceTrent won by resignation"]

1. e4 {[%clk 0:03:01.9]} 1... d6 {[%clk 0:02:58.7]} 2. d4 {[%clk 0:03:02.9]}
2... g6 {[%clk 0:03:00.6]} 3. Nc3 {[%clk 0:03:04]} 3... Bg7 {[%clk 0:03:02.2]}
4. Bg5 {[%clk 0:03:05.2]} 4... c6 {[%clk 0:02:58.1]} 5. Qd2 {[%clk 0:03:05.9]}
5... b5 {[%clk 0:02:58.5]} 6. f4 {[%clk 0:03:05.8]} 6... Nf6 {[%clk 0:02:57]} 7.
Bd3 {[%clk 0:03:05.5]} 7... O-O {[%clk 0:02:51.5]} 8. Nf3 {[%clk 0:03:05.5]}
8... b4 {[%clk 0:02:45]} 9. Ne2 {[%clk 0:03:05.1]} 9... c5 {[%clk 0:02:44.3]}
10. dxc5 {[%clk 0:02:58.1]} 10... dxc5 {[%clk 0:02:41.8]} 11. e5 {[%clk
0:02:56.2]} 11... Ng4 {[%clk 0:02:38]} 12. h3 {[%clk 0:02:43.2]} 12... c4 {[%clk
0:02:02.4]} 13. Be4 {[%clk 0:02:30.7]} 13... Qxd2+ {[%clk 0:02:00.1]} 14. Kxd2
{[%clk 0:02:32.6]} 14... Nf2 {[%clk 0:01:59.3]} 15. Bxa8 {[%clk 0:02:32.1]}
15... Nxh1 {[%clk 0:02:00.7]} 16. Rxh1 {[%clk 0:02:32.6]} 16... Ba6 {[%clk
0:01:55]} 17. Bxe7 {[%clk 0:02:21.7]} 17... c3+ {[%clk 0:01:56.4]} 18. bxc3
{[%clk 0:02:21.3]} 18... bxc3+ {[%clk 0:01:55.5]} 19. Nxc3 {[%clk 0:02:22.5]}
19... Rc8 {[%clk 0:01:51.2]} 20. Rb1 {[%clk 0:02:15.8]} 20... Bh6 {[%clk
0:01:41.3]} 21. g3 {[%clk 0:02:14]} 21... Bc4 {[%clk 0:01:29.1]} 22. Bd6 {[%clk
0:02:03.1]} 22... Nd7 {[%clk 0:01:28.9]} 23. Bd5 {[%clk 0:02:03.7]} 23... Nb6
{[%clk 0:01:24]} 24. Bb7 {[%clk 0:01:42.8]} 24... Rd8 {[%clk 0:01:21.5]} 25. Ke1
{[%clk 0:01:43.2]} 25... Be6 {[%clk 0:01:21.7]} 26. Ne4 {[%clk 0:01:30.3]} 26...
Bg7 {[%clk 0:00:45.4]} 27. h4 {[%clk 0:01:25.4]} 27... h6 {[%clk 0:00:34.3]} 28.
Bc7 {[%clk 0:01:22.9]} 28... Re8 {[%clk 0:00:26]} 29. Bxb6 {[%clk 0:01:21.6]}
29... axb6 {[%clk 0:00:27.9]} 30. Rxb6 {[%clk 0:01:22]} 30... Bg4 {[%clk
0:00:29.3]} 31. Kf2 {[%clk 0:01:21.2]} 31... Kf8 {[%clk 0:00:28.5]} 32. Nf6
{[%clk 0:01:21.4]} 1-0

[Event "*** Titled Tuesday Blitz"]
[Site "Chess.com"]
[Date "2018.01.02"]
[Round "6"]
[White "AljoschaFeuerstack"]
[Black "MatthewG-p4p"]
[Result "1-0"]
[WhiteElo "1880"]
[BlackElo "2597"]
[TimeControl "180+2"]
[EndTime "14:18:47 PST"]
[Termination "AljoschaFeuerstack won by resignation"]

1. e4 {[%clk 0:03:01.8]} 1... e6 {[%clk 0:02:54.7]} 2. d4 {[%clk 0:03:02]} 2...
d5 {[%clk 0:02:56.2]} 3. Nd2 {[%clk 0:03:03.3]} 3... c5 {[%clk 0:02:56]} 4. Ngf3
{[%clk 0:03:03.3]} 4... cxd4 {[%clk 0:02:53.8]} 5. exd5 {[%clk 0:03:03.9]} 5...
Qxd5 {[%clk 0:02:53.9]} 6. Bc4 {[%clk 0:03:04.6]} 6... Qd6 {[%clk 0:02:55.2]} 7.
O-O {[%clk 0:03:05.6]} 7... Nf6 {[%clk 0:02:56.7]} 8. Qe2 {[%clk 0:02:57.1]}
8... Nc6 {[%clk 0:02:54.6]} 9. Rd1 {[%clk 0:02:58.2]} 9... a6 {[%clk 0:02:55.4]}
10. c3 {[%clk 0:02:58.8]} 10... Be7 {[%clk 0:02:52.7]} 11. Ne4 {[%clk
0:02:59.4]} 11... Nxe4 {[%clk 0:02:45.8]} 12. Qxe4 {[%clk 0:03:01.1]} 12... e5
{[%clk 0:02:29.5]} 13. cxd4 {[%clk 0:02:59.8]} 13... f5 {[%clk 0:02:20.6]} 14.
Qe1 {[%clk 0:02:10.7]} 14... e4 {[%clk 0:02:20]} 15. Ng5 {[%clk 0:02:03.1]}
15... Nd8 {[%clk 0:01:56.1]} 16. Qe2 {[%clk 0:01:17.5]} 16... b5 {[%clk
0:01:48.5]} 17. Bb3 {[%clk 0:01:15.8]} 17... Bb7 {[%clk 0:01:40.8]} 18. a4
{[%clk 0:01:08.3]} 18... b4 {[%clk 0:01:28.7]} 19. a5 {[%clk 0:00:38.3]} 19...
Bd5 {[%clk 0:01:26.3]} 20. Ba4+ {[%clk 0:00:39]} 20... Kf8 {[%clk 0:01:24.8]}
21. f3 {[%clk 0:00:32.9]} 21... exf3 {[%clk 0:01:06.9]} 22. Nxf3 {[%clk
0:00:32.1]} 22... Ne6 {[%clk 0:01:08.1]} 23. Be3 {[%clk 0:00:30.5]} 23... Bf6
{[%clk 0:01:03.8]} 24. Ne5 {[%clk 0:00:31.5]} 24... Rd8 {[%clk 0:01:00.3]} 25.
Rac1 {[%clk 0:00:30.2]} 25... Bxe5 {[%clk 0:00:50.3]} 26. dxe5 {[%clk 0:00:31]}
26... Qxe5 {[%clk 0:00:51.7]} 27. Bc5+ {[%clk 0:00:30.6]} 1-0

[Event "*** Titled Tuesday Blitz"]
[Site "Chess.com"]
[Date "2018.01.02"]
[Round "6"]
[White "Babbelbox"]
[Black "Kaphrep"]
[Result "1/2-1/2"]
[WhiteElo "2443"]
[BlackElo "2636"]
[TimeControl "180+2"]
[EndTime "14:19:44 PST"]
[Termination "Game drawn by repetition"]

1. d4 {[%clk 0:03:01.9]} 1... d5 {[%clk 0:02:59.8]} 2. c4 {[%clk 0:03:02.5]}
2... e6 {[%clk 0:03:01.1]} 3. Nc3 {[%clk 0:03:02.3]} 3... Nf6 {[%clk 0:03:01.9]}
4. cxd5 {[%clk 0:03:03.5]} 4... exd5 {[%clk 0:03:02.4]} 5. Bg5 {[%clk
0:03:05.1]} 5... c6 {[%clk 0:03:02.5]} 6. e3 {[%clk 0:03:06.5]} 6... Be7 {[%clk
0:03:02.6]} 7. Qc2 {[%clk 0:03:06.8]} 7... Nbd7 {[%clk 0:03:02.8]} 8. Bd3 {[%clk
0:03:08.2]} 8... O-O {[%clk 0:03:02.8]} 9. Nf3 {[%clk 0:03:08.9]} 9... Re8
{[%clk 0:03:03.2]} 10. O-O {[%clk 0:03:09]} 10... g6 {[%clk 0:03:03.9]} 11. h3
{[%clk 0:03:04.6]} 11... Nh5 {[%clk 0:03:02.4]} 12. Bh6 {[%clk 0:02:46.1]} 12...
Nb6 {[%clk 0:03:01.1]} 13. Ne5 {[%clk 0:02:26]} 13... Ng7 {[%clk 0:02:40.6]} 14.
g4 {[%clk 0:02:12.7]} 14... Bd6 {[%clk 0:02:25.9]} 15. f4 {[%clk 0:02:01.5]}
15... f6 {[%clk 0:01:51.5]} 16. Bxg6 {[%clk 0:01:42.1]} 16... fxe5 {[%clk
0:01:39.5]} 17. Bxh7+ {[%clk 0:01:42.6]} 17... Kh8 {[%clk 0:01:38.3]} 18. Bxg7+
{[%clk 0:01:38.9]} 18... Kxg7 {[%clk 0:01:38.9]} 19. Qg6+ {[%clk 0:01:39.7]}
19... Kh8 {[%clk 0:01:38.8]} 20. fxe5 {[%clk 0:01:41.2]} 20... Re7 {[%clk
0:01:00.6]} 21. Qf6+ {[%clk 0:01:06.8]} 21... Kxh7 {[%clk 0:01:00.6]} 22. exd6
{[%clk 0:01:06.3]} 22... Rd7 {[%clk 0:00:52.2]} 23. Qf5+ {[%clk 0:01:06.8]}
23... Kg8 {[%clk 0:00:53.1]} 24. Qe6+ {[%clk 0:01:01.5]} 24... Kh7 {[%clk
0:00:41.7]} 25. Rf6 {[%clk 0:00:57.7]} 25... Rxd6 {[%clk 0:00:35]} 26. Qf7+
{[%clk 0:00:40.9]} 26... Kh8 {[%clk 0:00:35.3]} 27. Qh5+ {[%clk 0:00:41.8]}
27... Kg8 {[%clk 0:00:26]} 28. Qg6+ {[%clk 0:00:42.8]} 28... Kh8 {[%clk
0:00:26.2]} 29. Rxd6 {[%clk 0:00:43.5]} 29... Qh4 {[%clk 0:00:26.2]} 30. Rf1
{[%clk 0:00:34.6]} 30... Qg3+ {[%clk 0:00:24.6]} 31. Kh1 {[%clk 0:00:34.2]}
31... Qxh3+ {[%clk 0:00:26.1]} 32. Kg1 {[%clk 0:00:35.7]} 32... Qg3+ {[%clk
0:00:19]} 33. Kh1 {[%clk 0:00:37.1]} 33... Qh3+ {[%clk 0:00:19.1]} 34. Kg1
{[%clk 0:00:38.6]} 34... Qg3+ {[%clk 0:00:13.2]} 35. Kh1 {[%clk 0:00:39.9]}
35... Qh3+ {[%clk 0:00:14.6]} 1/2-1/2